2CCN - Level 2 Cost Centre Name,,9CCN - Level 9 Cost Centre Name,9CCC - Level 9 Cost Centre Code,9AN - Level 9 Account Name,9AC - Level 9 Account Code,Date posted,Date of transaction,Merchant Name,Merchant City,Merchant State,Merchant Zip Code,Originating Account Name,Originating Account Number,MCC/SIC Code,MCC Description,Original Amount,Currency,Conversion Rate,Billed Amount,Debit Credit,Reference Number,Statement Cycle,Account Name
Gloucester City Council,23UE,Museum of Gloucester,MU002,Catering Provisions,3103,04/02/2019,02/02/2019,ASDA SUPERSTORE,GLOUCESTER,GBR,GL1 1DS,REDACTED,556*********2362,5411,"GROCERY STORES, SUPERMARKETS",5.61,Pound Sterling (826),1.000000000,5.61,Debit,15377759034070677389543,02/03/2019,GLOUCESTER CC
Gloucester City Council,23UE,Museum of Gloucester,MU002,General Supplies/Materials,3025,05/02/2019,04/02/2019,AMZN MKTP UK*MI57J4JM4,AMAZON.CO.UK,LUX,,REDACTED,556*********2362,5942,BOOK STORES,17.7,Pound Sterling (826),1.000000000,17.7,Debit,85389249035904745315330,02/03/2019,GLOUCESTER CC
Gloucester City Council,23UE,Museum of Gloucester,MU002,Catering Provisions,3103,12/02/2019,11/02/2019,W M MORRISON STORE,575 GLOUCESTE,,GL1 4BD,REDACTED,556*********2362,5411,"GROCERY STORES, SUPERMARKETS",2.3,Pound Sterling (826),1.000000000,2.3,Debit,85481479043115729505537,02/03/2019,GLOUCESTER CC
Gloucester City Council,23UE,Gloucester Life Museum,MU005,Catering Provisions,3103,13/02/2019,12/02/2019,ASDA SUPERSTORE,GLOUCESTER,GBR,GL1 1DS,REDACTED,556*********2362,5411,"GROCERY STORES, SUPERMARKETS",2.65,Pound Sterling (826),1.000000000,2.65,Debit,45377759044040259564248,02/03/2019,GLOUCESTER CC
Gloucester City Council,23UE,Museum of Gloucester,MU002,General Supplies/Materials,3025,15/02/2019,14/02/2019,WH SMITH,GLOUCESTER,GBR,GL1 1NZ,REDACTED,556*********2362,5994,NEWS DEALERS AND NEWSSTANDS,5.23,Pound Sterling (826),1.000000000,5.23,Debit,45377759046060365943407,02/03/2019,GLOUCESTER CC
Gloucester City Council,23UE,Museum of Gloucester,MU002,General Supplies/Materials,3025,15/02/2019,14/02/2019,THE WORKS,GLOUCESTER,,GL1 2NG,REDACTED,556*********2362,5310,DISCOUNT STORES,6,Pound Sterling (826),1.000000000,6,Debit,85481479046116451076975,02/03/2019,GLOUCESTER CC
Gloucester City Council,23UE,Gloucester Life Museum,MU005,Catering Provisions,3103,18/02/2019,15/02/2019,TESCO STORES 6819,GLOUCESTER,GBR,GL1 1TP,REDACTED,556*********2362,5411,"GROCERY STORES, SUPERMARKETS",2.2,Pound Sterling (826),1.000000000,2.2,Debit,15377759047070033110281,02/03/2019,GLOUCESTER CC
Gloucester City Council,23UE,Gloucester Life Museum,MU005,General Supplies/Materials,3025,18/02/2019,15/02/2019,AMZN MKTP UK*MI7I15QA4,AMAZON.CO.UK,LUX,,REDACTED,556*********2362,5942,BOOK STORES,13.19,Pound Sterling (826),1.000000000,13.19,Debit,85389249046906877596238,02/03/2019,GLOUCESTER CC
Gloucester City Council,23UE,Museum of Gloucester,MU002,General Supplies/Materials,3025,19/02/2019,18/02/2019,TIMPSON LTD,GLOUCESTER,,GL11RW,REDACTED,556*********2362,7251,"SHOE REPAIR SHOPS, SHOE SHINE PARLORS & HAT CLEANING SHOPS",60.9,Pound Sterling (826),1.000000000,60.9,Debit,85481479049117317734382,02/03/2019,GLOUCESTER CC
Gloucester City Council,23UE,Museum of Gloucester,MU002,General Supplies/Materials,3025,19/02/2019,18/02/2019,TIMPSON LTD,GLOUCESTER,,GL11RW,REDACTED,556*********2362,7251,"SHOE REPAIR SHOPS, SHOE SHINE PARLORS & HAT CLEANING SHOPS",8,Pound Sterling (826),1.000000000,8,Debit,85481479049117330972217,02/03/2019,GLOUCESTER CC
Gloucester City Council,23UE,Museum of Gloucester,MU002,Catering Provisions,3103,20/02/2019,19/02/2019,ASDA SUPERSTORE,GLOUCESTER,GBR,GL1 1DS,REDACTED,556*********2362,5411,"GROCERY STORES, SUPERMARKETS",1.48,Pound Sterling (826),1.000000000,1.48,Debit,45377759051090265987602,02/03/2019,GLOUCESTER CC
Gloucester City Council,23UE,Museum of Gloucester,MU002,General Supplies/Materials,3025,21/02/2019,20/02/2019,ACERS PETS,GLOUCESTER,,GL1 1RP,REDACTED,556*********2362,5995,PET SHOPS-PET FOOD AND SUPPLY STORES,13.55,Pound Sterling (826),1.000000000,13.55,Debit,55504439051110293015665,02/03/2019,GLOUCESTER CC
Gloucester City Council,23UE,Museum of Gloucester,MU002,Catering Provisions,3103,25/02/2019,22/02/2019,ASDA SUPERSTORE,GLOUCESTER,GBR,GL1 1DS,REDACTED,556*********2362,5411,"GROCERY STORES, SUPERMARKETS",20.78,Pound Sterling (826),1.000000000,20.78,Debit,45377759054020292092115,02/03/2019,GLOUCESTER CC
Gloucester City Council,23UE,Managing Director & Directors,MT001,Professional Membership & Subscriptions,3403,05/02/2019,04/02/2019,WWW.SOLACE.ORG.UK,PONTEFRACT,,WF8 1NT,REDACTED,556*********1418,8699,MEMBERSHIP ORGANIZATIONS NOT ELSEWHERE CLASSIFIED,466.8,Pound Sterling (826),1.000000000,466.8,Debit,55541969036465000097856,02/03/2019,GLOUCESTER CC
Gloucester City Council,23UE,Managing Director & Directors,MT001,Professional Membership & Subscriptions,3403,11/02/2019,08/02/2019,WWW.SOLACE.ORG.UK,PONTEFRACT,,WF8 1NT,REDACTED,556*********1418,8699,MEMBERSHIP ORGANIZATIONS NOT ELSEWHERE CLASSIFIED,-466.8,Pound Sterling (826),1.000000000,-466.8,Credit,55541969040465000077985,02/03/2019,GLOUCESTER CC
Gloucester City Council,23UE,Members Support,DS002,Mileage and Travel Allowances,2401,21/02/2019,20/02/2019,Trainline,London,GBR,1445,REDACTED,556*********1418,4112,PASSENGER RAILWAYS,80.8,Pound Sterling (826),1.000000000,80.8,Debit,85130089051907376039591,02/03/2019,GLOUCESTER CC
Gloucester City Council,23UE,Managing Director & Directors,MT001,Public Transport - Staff,2402,25/02/2019,22/02/2019,Trainline,London,GBR,1445,REDACTED,556*********1418,4112,PASSENGER RAILWAYS,14.35,Pound Sterling (826),1.000000000,14.35,Debit,85130089053907464631919,02/03/2019,GLOUCESTER CC
Gloucester City Council,23UE,Members Support,DS002,Mileage and Travel Allowances,2401,25/02/2019,22/02/2019,Trainline,London,GBR,1445,REDACTED,556*********1418,4112,PASSENGER RAILWAYS,80.8,Pound Sterling (826),1.000000000,80.8,Debit,85130089053907464623478,02/03/2019,GLOUCESTER CC
Gloucester City Council,23UE,Blackfriars ,GH010,Catering Provisions,3103,11/02/2019,09/02/2019,ASDA SUPERSTORE,GLOUCESTER,GBR,GL1 1DS,REDACTED,556*********1155,5411,"GROCERY STORES, SUPERMARKETS",32.71,Pound Sterling (826),1.000000000,32.71,Debit,15377759041020690773315,02/03/2019,GLOUCESTER CC
Gloucester City Council,23UE,Guildhall Bar and Caf�,GH005,Catering Provisions,3103,12/02/2019,11/02/2019,HOLLAND & BARRETT,GLOUCESTER,,GL1 1PD,REDACTED,556*********1155,5999,MISCELLANEOUS AND RETAIL STORES,3.49,Pound Sterling (826),1.000000000,3.49,Debit,85481479043115598410306,02/03/2019,GLOUCESTER CC
Gloucester City Council,23UE,Guildhall Bar and Caf�,GH005,Catering Provisions,3103,14/02/2019,13/02/2019,ICELAND,GLOUCESTER,GBR,GL1 1SA,REDACTED,556*********1155,5411,"GROCERY STORES, SUPERMARKETS",5.92,Pound Sterling (826),1.000000000,5.92,Debit,25377759045050096188920,02/03/2019,GLOUCESTER CC
Gloucester City Council,23UE,Guildhall Bar and Caf�,GH005,Catering Provisions,3103,18/02/2019,15/02/2019,SAINSBURYS SACAT 0771,GLOUCESTER,GBR,GL1 2AG,REDACTED,556*********1155,5411,"GROCERY STORES, SUPERMARKETS",6,Pound Sterling (826),1.000000000,6,Debit,35425159047070214032687,02/03/2019,GLOUCESTER CC
Gloucester City Council,23UE,Gloucester Guildhall,GH001,Mileage and Travel Allowances,2401,18/02/2019,15/02/2019,Trainline,London,GBR,1445,REDACTED,556*********1155,4112,PASSENGER RAILWAYS,74.5,Pound Sterling (826),1.000000000,74.5,Debit,85130089046906157136194,02/03/2019,GLOUCESTER CC
Gloucester City Council,23UE,Guildhall Events,GH002,Catering Provisions,3103,18/02/2019,15/02/2019,ASDA GROCERIES ONLINE,INTERNET,GBR,LS11 5AD,REDACTED,556*********1155,5411,"GROCERY STORES, SUPERMARKETS",41.4,Pound Sterling (826),1.000000000,41.4,Debit,25377759047070148668156,02/03/2019,GLOUCESTER CC
Gloucester City Council,23UE,Gloucester Guildhall,GH001,Mileage and Travel Allowances,2401,18/02/2019,15/02/2019,HOLIDAY INN,CAMDEN LOCK,,NW1 7BY,REDACTED,556*********1155,7011,"LODGING, HOTELS, MOTELS, RESORTS",126,Pound Sterling (826),1.000000000,126,Debit,85481479047116718943354,02/03/2019,GLOUCESTER CC
Gloucester City Council,23UE,Guildhall Bar and Caf�,GH005,Catering Provisions,3103,21/02/2019,20/02/2019,ICELAND,GLOUCESTER,GBR,GL1 1SA,REDACTED,556*********1155,5411,"GROCERY STORES, SUPERMARKETS",2,Pound Sterling (826),1.000000000,2,Debit,25377759052000093014967,02/03/2019,GLOUCESTER CC
Gloucester City Council,23UE,Guildhall Bar and Caf�,GH005,Catering Provisions,3103,25/02/2019,22/02/2019,TESCO STORES 6819,GLOUCESTER,GBR,GL1 1TP,REDACTED,556*********1155,5411,"GROCERY STORES, SUPERMARKETS",2,Pound Sterling (826),1.000000000,2,Debit,15377759054020054824534,02/03/2019,GLOUCESTER CC
Gloucester City Council,23UE,Guildhall Events,GH002,Catering Provisions,3103,25/02/2019,22/02/2019,ASDA GROCERIES ONLINE,INTERNET,GBR,LS11 5AD,REDACTED,556*********1155,5411,"GROCERY STORES, SUPERMARKETS",44.9,Pound Sterling (826),1.000000000,44.9,Debit,25377759054020150718050,02/03/2019,GLOUCESTER CC
Gloucester City Council,23UE,Guildhall Events,GH002,Catering Provisions,3103,25/02/2019,22/02/2019,W M MORRISON STORE,575 GLOUCESTE,,GL1 4BD,REDACTED,556*********1155,5411,"GROCERY STORES, SUPERMARKETS",8.7,Pound Sterling (826),1.000000000,8.7,Debit,85481479054118467496220,02/03/2019,GLOUCESTER CC
Gloucester City Council,23UE,Guildhall Bar and Caf�,GH005,Catering Provisions,3103,25/02/2019,23/02/2019,ICELAND,GLOUCESTER,GBR,GL1 1SA,REDACTED,556*********1155,5411,"GROCERY STORES, SUPERMARKETS",6,Pound Sterling (826),1.000000000,6,Debit,95377759055020510269986,02/03/2019,GLOUCESTER CC
Gloucester City Council,23UE,Guildhall Bar and Caf�,GH005,Catering Provisions,3103,27/02/2019,26/02/2019,SAINSBURYS SACAT 0771,GLOUCESTER,GBR,GL1 2AG,REDACTED,556*********1155,5411,"GROCERY STORES, SUPERMARKETS",17.15,Pound Sterling (826),1.000000000,17.15,Debit,25425159058040153923854,02/03/2019,GLOUCESTER CC
Gloucester City Council,23UE,Guildhall Bar and Caf�,GH005,Catering Provisions,3103,27/02/2019,26/02/2019,MARKS&SPENCER PLC,GLOUCESTER,GBR,GL1 1PH,REDACTED,556*********1155,5411,"GROCERY STORES, SUPERMARKETS",2.55,Pound Sterling (826),1.000000000,2.55,Debit,35377759058040266884401,02/03/2019,GLOUCESTER CC
Gloucester City Council,23UE,Guildhall Bar and Caf�,GH005,Catering Provisions,3103,28/02/2019,27/02/2019,ICELAND,GLOUCESTER,GBR,GL1 1SA,REDACTED,556*********1155,5411,"GROCERY STORES, SUPERMARKETS",9.38,Pound Sterling (826),1.000000000,9.38,Debit,25377759059050098054511,02/03/2019,GLOUCESTER CC
Gloucester City Council,23UE,Gloucester Guildhall,GH001,Public Transport - Staff,2402,01/03/2019,28/02/2019,LUL TICKET MACHINE,PADDINGTON (C,,W21RH,REDACTED,556*********1155,4112,PASSENGER RAILWAYS,4.9,Pound Sterling (826),1.000000000,4.9,Debit,85481479060119993209964,02/03/2019,GLOUCESTER CC
Gloucester City Council,23UE,Gloucester Guildhall,GH001,Equipment and Furniture,3001,04/02/2019,31/01/2019,SAFE.CO.UK,01772 730320,,PR22NS,REDACTED,556*********8997,5943,"STATIONERY, OFFICE AND SCHOOL SUPPLY STO",29.95,Pound Sterling (826),1.000000000,29.95,Debit,85481479032112942873167,02/03/2019,GLOUCESTER CC
Gloucester City Council,23UE,Gloucester Guildhall,GH001,Equipment and Furniture,3001,05/02/2019,31/01/2019,WWW.POSTOFFICESHOP.CO.,SHEFFIELD,,S9 1XU,REDACTED,556*********8997,5111,"STATIONERY,OFFICE SUPPLIES,PRINTING AND WRITING PAPER",30.91,Pound Sterling (826),1.000000000,30.91,Debit,55541969035975000090355,02/03/2019,GLOUCESTER CC
Gloucester City Council,23UE,Gloucester Guildhall,GH001,Equipment and Furniture,3001,05/02/2019,04/02/2019,ASDA GEORGE COM LEEDS,LEEDS,GBR,LS11 5AD,REDACTED,556*********8997,5411,"GROCERY STORES, SUPERMARKETS",32.95,Pound Sterling (826),1.000000000,32.95,Debit,15377759036080027412653,02/03/2019,GLOUCESTER CC
Gloucester City Council,23UE,Gloucester Guildhall,GH001,Equipment and Furniture,3001,05/02/2019,04/02/2019,WILKO.COM,INTERNET,GBR,S80 3EG,REDACTED,556*********8997,5399,MISCELLANEOUS GENERAL MERCHANDISE STORES,16,Pound Sterling (826),1.000000000,16,Debit,45425159036080298394095,02/03/2019,GLOUCESTER CC
Gloucester City Council,23UE,Gloucester Guildhall,GH001,General Supplies/Materials,3025,05/02/2019,04/02/2019,B & Q 1179,GLOUCESTER,,GL12SG,REDACTED,556*********8997,5211,LUMBER AND BUILDING MATERIALS STORES,-28.22,Pound Sterling (826),1.000000000,-28.22,Credit,85481479036113904900697,02/03/2019,GLOUCESTER CC
Gloucester City Council,23UE,Guildhall Events,GH002,Professional Advice/Consultants Fees,3952,07/02/2019,05/02/2019,MIPERMIT LTD,INTERNET,GBR,SN15 5FD,REDACTED,556*********8997,7523,AUTOMOBILE PARKING LOTS AND GARAGES,10,Pound Sterling (826),1.000000000,10,Debit,25425159038000129186007,02/03/2019,GLOUCESTER CC
Gloucester City Council,23UE,Guildhall Events,GH002,Advertising & Publicity,3404,11/02/2019,08/02/2019,WWW.INSTANTPRINT.C,01709 382202,,S63 5DR,REDACTED,556*********8997,7338,QUICK-COPY AND REPRODUCTION SERVICES,29.29,Pound Sterling (826),1.000000000,29.29,Debit,85481479040114879386585,02/03/2019,GLOUCESTER CC
Gloucester City Council,23UE,Guildhall Events,GH002,Professional Advice/Consultants Fees,3952,12/02/2019,08/02/2019,MIPERMIT LTD,INTERNET,GBR,SN15 5FD,REDACTED,556*********8997,7523,AUTOMOBILE PARKING LOTS AND GARAGES,10,Pound Sterling (826),1.000000000,10,Debit,25425159043030139924389,02/03/2019,GLOUCESTER CC
Gloucester City Council,23UE,Guildhall Events,GH002,Advertising & Publicity,3404,12/02/2019,11/02/2019,MAILCHIMP *ADCAMPAIG,MAILCHIMP.COM,GA,30308,REDACTED,556*********8997,5968,CONTINUITY/SUBSCRIPTION MERCHANTS,5,Pound Sterling (826),1.000000000,5,Debit,55425449042100808545592,02/03/2019,GLOUCESTER CC
Gloucester City Council,23UE,Guildhall Events,GH002,Professional Advice/Consultants Fees,3952,13/02/2019,11/02/2019,MIPERMIT LTD,INTERNET,GBR,SN15 5FD,REDACTED,556*********8997,7523,AUTOMOBILE PARKING LOTS AND GARAGES,20,Pound Sterling (826),1.000000000,20,Debit,25425159044040140471105,02/03/2019,GLOUCESTER CC
Gloucester City Council,23UE,Gloucester Guildhall,GH001,Equipment and Furniture,3001,13/02/2019,12/02/2019,AMZN Mktp UK*MI5WR7HF4,800-279-6620,LUX,L2338,REDACTED,556*********8997,5942,BOOK STORES,33.35,Pound Sterling (826),1.000000000,33.35,Debit,55204729043100491470364,02/03/2019,GLOUCESTER CC
Gloucester City Council,23UE,Guildhall Events,GH002,Professional Advice/Consultants Fees,3952,19/02/2019,18/02/2019,Hotel on Booking.com,Amsterdam,NLD,1017 SG,REDACTED,556*********8997,7011,"LODGING, HOTELS, MOTELS, RESORTS",202,Pound Sterling (826),1.000000000,202,Debit,15265679049297982561536,02/03/2019,GLOUCESTER CC
Gloucester City Council,23UE,Blackfriars ,GH010,Building Repairs and Maintenance,1001,19/02/2019,18/02/2019,WILKO.COM,INTERNET,GBR,S80 3EG,REDACTED,556*********8997,5399,MISCELLANEOUS GENERAL MERCHANDISE STORES,5,Pound Sterling (826),1.000000000,5,Debit,45425159050080334390934,02/03/2019,GLOUCESTER CC
Gloucester City Council,23UE,Guildhall Events,GH002,Advertising & Publicity,3404,19/02/2019,18/02/2019,MAILCHIMP *MONTHLY,MAILCHIMP.COM,GA,30308,REDACTED,556*********8997,5968,CONTINUITY/SUBSCRIPTION MERCHANTS,15.49,Pound Sterling (826),1.000000000,15.49,Debit,55425449049100275134576,02/03/2019,GLOUCESTER CC
Gloucester City Council,23UE,Guildhall Events,GH002,Advertising & Publicity,3404,19/02/2019,18/02/2019,FACEBK *TB56KKW9X2,fb.me/ads,IRL,UNKNOWN,REDACTED,556*********8997,7311,ADVERTISING SERVICES,89.3,Pound Sterling (826),1.000000000,89.3,Debit,55204729049100249850267,02/03/2019,GLOUCESTER CC
Gloucester City Council,23UE,Gloucester Guildhall,GH001,Equipment and Furniture,3001,20/02/2019,18/02/2019,RS COMPONENTS,08457 201201,,NN179RS,REDACTED,556*********8997,5065,ELECTRICAL PARTS AND EQUIPMENT,12.58,Pound Sterling (826),1.000000000,12.58,Debit,85481479050117571040159,02/03/2019,GLOUCESTER CC
Gloucester City Council,23UE,Gloucester Guildhall,GH001,Mileage and Travel Allowances,2401,20/02/2019,19/02/2019,HOLIDAY INN,CAMDEN LOCK,,NW1 7BY,REDACTED,556*********8997,7011,"LODGING, HOTELS, MOTELS, RESORTS",208,Pound Sterling (826),1.000000000,208,Debit,85481479051117695467550,02/03/2019,GLOUCESTER CC
Gloucester City Council,23UE,Blackfriars Weddings,GH011,Advertising & Publicity,3404,25/02/2019,22/02/2019,WWW.INSTANTPRINT.C,01709 382202,,S63 5DR,REDACTED,556*********8997,7338,QUICK-COPY AND REPRODUCTION SERVICES,103.5,Pound Sterling (826),1.000000000,103.5,Debit,85481479054118363975962,02/03/2019,GLOUCESTER CC
Gloucester City Council,23UE,Gloucester Guildhall,GH001,Mileage and Travel Allowances,2401,26/02/2019,24/02/2019,ENTERPRISE BAR&HOTEL,LONDON NW3,,NW3 2BL,REDACTED,556*********8997,5813,"DRINKING PLACES (ALCOHOLIC BEV.)-BARS,TAVERNS,NIGHTCLUBS,",140,Pound Sterling (826),1.000000000,140,Debit,55541969056938000792572,02/03/2019,GLOUCESTER CC
Gloucester City Council,23UE,Guildhall Events,GH002,Professional Advice/Consultants Fees,3952,27/02/2019,26/02/2019,Village Hotel Bristol,Warrington,GBR,WA1 1RW,REDACTED,556*********8997,7011,"LODGING, HOTELS, MOTELS, RESORTS",99,Pound Sterling (826),1.000000000,99,Debit,05402849057022623720199,02/03/2019,GLOUCESTER CC
Gloucester City Council,23UE,Guildhall Events,GH002,Professional Advice/Consultants Fees,3952,27/02/2019,26/02/2019,Village Hotel Bristol,Warrington,GBR,WA1 1RW,REDACTED,556*********8997,7011,"LODGING, HOTELS, MOTELS, RESORTS",99,Pound Sterling (826),1.000000000,99,Debit,05402849057022623720249,02/03/2019,GLOUCESTER CC
Gloucester City Council,23UE,Guildhall Events,GH002,Professional Advice/Consultants Fees,3952,27/02/2019,26/02/2019,Village Hotel Bristol,Warrington,GBR,WA1 1RW,REDACTED,556*********8997,7011,"LODGING, HOTELS, MOTELS, RESORTS",99,Pound Sterling (826),1.000000000,99,Debit,05402849057022623720264,02/03/2019,GLOUCESTER CC
Gloucester City Council,23UE,Guildhall Events,GH002,Professional Advice/Consultants Fees,3952,27/02/2019,26/02/2019,Village Hotel Bristol,Warrington,GBR,WA1 1RW,REDACTED,556*********8997,7011,"LODGING, HOTELS, MOTELS, RESORTS",99,Pound Sterling (826),1.000000000,99,Debit,05402849057022623720272,02/03/2019,GLOUCESTER CC
Gloucester City Council,23UE,Guildhall Events,GH002,Professional Advice/Consultants Fees,3952,27/02/2019,26/02/2019,Village Hotel Bristol,Warrington,GBR,WA1 1RW,REDACTED,556*********8997,7011,"LODGING, HOTELS, MOTELS, RESORTS",99,Pound Sterling (826),1.000000000,99,Debit,05402849057022623720280,02/03/2019,GLOUCESTER CC
Gloucester City Council,23UE,Guildhall Events,GH002,Professional Advice/Consultants Fees,3952,27/02/2019,26/02/2019,Village Hotel Bristol,Warrington,GBR,WA1 1RW,REDACTED,556*********8997,7011,"LODGING, HOTELS, MOTELS, RESORTS",99,Pound Sterling (826),1.000000000,99,Debit,05402849057022628519372,02/03/2019,GLOUCESTER CC
Gloucester City Council,23UE,Guildhall Events,GH002,Professional Advice/Consultants Fees,3952,28/02/2019,22/02/2019,MIPERMIT LTD,INTERNET,GBR,SN15 5FD,REDACTED,556*********8997,7523,AUTOMOBILE PARKING LOTS AND GARAGES,50,Pound Sterling (826),1.000000000,50,Debit,25425159059050136994731,02/03/2019,GLOUCESTER CC
Gloucester City Council,23UE,Museum of Gloucester,MU002,Events,3070,01/03/2019,28/02/2019,FACEBK *TDXN4KNEX2,fb.me/ads,IRL,UNKNOWN,REDACTED,556*********8997,7311,ADVERTISING SERVICES,9.91,Pound Sterling (826),1.000000000,9.91,Debit,55204729059200700208703,02/03/2019,GLOUCESTER CC
Gloucester City Council,23UE,Gloucester Guildhall,GH001,Equipment and Furniture,3001,01/03/2019,28/02/2019,WILKO.COM,INTERNET,GBR,S80 3EG,REDACTED,556*********8997,5399,MISCELLANEOUS GENERAL MERCHANDISE STORES,27,Pound Sterling (826),1.000000000,27,Debit,45425159060060375556229,02/03/2019,GLOUCESTER CC
Gloucester City Council,23UE,Museum of Gloucester,MU002,Printing External,3203,01/03/2019,28/02/2019,BIGARTANDBANNERS,444416188314,GBR,M261AD,REDACTED,556*********8997,7311,ADVERTISING SERVICES,52.84,Pound Sterling (826),1.000000000,52.84,Debit,85130089059908732950630,02/03/2019,GLOUCESTER CC
Gloucester City Council,23UE,Docks Complex - Services,AM006,Building Repairs and Maintenance,1001,26/02/2019,25/02/2019,B & Q 1179,GLOUCESTER,,GL12SG,REDACTED,556*********4301,5211,LUMBER AND BUILDING MATERIALS STORES,134,Pound Sterling (826),1.000000000,134,Debit,85481479057119194705757,02/03/2019,GLOUCESTER CC
Gloucester City Council,23UE,Docks Complex - Services,AM006,Building Repairs and Maintenance,1001,27/02/2019,26/02/2019,WILKO RETAIL LIMIT,GLOUCESTER 14,,GL11SL,REDACTED,556*********4301,5722,HOUSEHOLD APPLIANCE STORES,27.05,Pound Sterling (826),1.000000000,27.05,Debit,85481479058119433902743,02/03/2019,GLOUCESTER CC
Gloucester City Council,23UE,Docks Complex - Services,AM006,Hospitality & Refreshments,3104,28/02/2019,27/02/2019,SAINSBURYS 2221,GLOUCESTER,GBR,GL2 5SA,REDACTED,556*********4301,5411,"GROCERY STORES, SUPERMARKETS",63.5,Pound Sterling (826),1.000000000,63.5,Debit,45425159059050344734380,02/03/2019,GLOUCESTER CC
Gloucester City Council,23UE,Docks Complex - Services,AM006,Building Repairs and Maintenance,1001,01/03/2019,28/02/2019,B & Q 1179,GLOUCESTER,,GL12SG,REDACTED,556*********4301,5211,LUMBER AND BUILDING MATERIALS STORES,25,Pound Sterling (826),1.000000000,25,Debit,85481479060119928111749,02/03/2019,GLOUCESTER CC
Gloucester City Council,23UE,Docks Complex - Services,AM006,Hospitality & Refreshments,3104,06/02/2019,05/02/2019,SAINSBURYS 2221,GLOUCESTER,GBR,GL2 5SA,REDACTED,556*********6128,5411,"GROCERY STORES, SUPERMARKETS",40.05,Pound Sterling (826),1.000000000,40.05,Debit,25425159037090137828477,02/03/2019,GLOUCESTER CC
Gloucester City Council,23UE,Economic Development,ED001,Public Transport - Staff,2402,05/02/2019,04/02/2019,Trainline,London,GBR,1445,REDACTED,556*********4234,4112,PASSENGER RAILWAYS,38.7,Pound Sterling (826),1.000000000,38.7,Debit,85130089035904662294098,02/03/2019,GLOUCESTER CC
Gloucester City Council,23UE,Economic Development,ED001,Public Transport - Staff,2402,05/02/2019,04/02/2019,Trainline,London,GBR,1445,REDACTED,556*********4234,4112,PASSENGER RAILWAYS,-359.4,Pound Sterling (826),1.000000000,-359.4,Credit,85130089035904662293439,02/03/2019,GLOUCESTER CC
Gloucester City Council,23UE,Planning Policy & Heritage,PL004,General Supplies/Materials,3025,13/02/2019,13/02/2019,Amazon.co.uk*MI0SR75E4,AMAZON.CO.UK,LUX,L2338,REDACTED,556*********4234,5969,ALL OTHER DIRECT MARKETERS,189,Pound Sterling (826),1.000000000,189,Debit,55204729044100594794941,02/03/2019,GLOUCESTER CC
Gloucester City Council,23UE,Housing Services,HS001,Public Transport - Staff,2402,15/02/2019,14/02/2019,Trainline,London,GBR,1445,REDACTED,556*********4234,4112,PASSENGER RAILWAYS,185.5,Pound Sterling (826),1.000000000,185.5,Debit,85130089045906114259205,02/03/2019,GLOUCESTER CC
Gloucester City Council,23UE,Development Management,PL003,Public Transport - Staff,2402,15/02/2019,14/02/2019,Trainline,London,GBR,1445,REDACTED,556*********4234,4112,PASSENGER RAILWAYS,96,Pound Sterling (826),1.000000000,96,Debit,85130089045906114258389,02/03/2019,GLOUCESTER CC
Gloucester City Council,23UE,Gloucester Guildhall,GH001,Public Transport - Staff,2402,20/02/2019,19/02/2019,Trainline,London,GBR,1445,REDACTED,556*********4234,4112,PASSENGER RAILWAYS,62.1,Pound Sterling (826),1.000000000,62.1,Debit,85130089050907330851249,02/03/2019,GLOUCESTER CC
Gloucester City Council,23UE,Events,GH008,Public Transport - Staff,2402,20/02/2019,19/02/2019,Trainline,London,GBR,1445,REDACTED,556*********4234,4112,PASSENGER RAILWAYS,186.2,Pound Sterling (826),1.000000000,186.2,Debit,85130089050907330851439,02/03/2019,GLOUCESTER CC
Gloucester City Council,23UE,Economic Development,ED001,External Training Course Fees,0550,26/02/2019,25/02/2019,PAYPAL *STRATFORDBU,35314369001,GBR,TW91EH,REDACTED,556*********4234,8931,"ACCOUNTING, AUDITING AND BOOKKEEPING SERVICES",19.99,Pound Sterling (826),1.000000000,19.99,Debit,85130089056907580415707,02/03/2019,GLOUCESTER CC
Gloucester City Council,23UE,Gloucester Guildhall,GH001,Mileage and Travel Allowances,2401,27/02/2019,26/02/2019,Trainline,London,GBR,1445,REDACTED,556*********4234,4112,PASSENGER RAILWAYS,176.9,Pound Sterling (826),1.000000000,176.9,Debit,85130089057908636326731,02/03/2019,GLOUCESTER CC
Gloucester City Council,23UE,Events,GH008,Public Transport - Staff,2402,27/02/2019,26/02/2019,Trainline,London,GBR,1445,REDACTED,556*********4234,4112,PASSENGER RAILWAYS,43.25,Pound Sterling (826),1.000000000,43.25,Debit,85130089057908636322359,02/03/2019,GLOUCESTER CC
Gloucester City Council,23UE,Council Streetcare Team,NE002,Public Transport - Staff,2402,01/03/2019,28/02/2019,Trainline,London,GBR,1445,REDACTED,556*********4234,4112,PASSENGER RAILWAYS,7.55,Pound Sterling (826),1.000000000,7.55,Debit,85130089059908729779323,02/03/2019,GLOUCESTER CC
Gloucester City Council,23UE,Members Support,DS002,Mileage and Travel Allowances,2401,28/02/2019,27/02/2019,Trainline,London,GBR,1445,REDACTED,556*********3029,4112,PASSENGER RAILWAYS,89.2,Pound Sterling (826),1.000000000,89.2,Debit,85130089058908682929973,02/03/2019,GLOUCESTER CC
Gloucester City Council,23UE,Housing Services,HS001,B&B Payments,1303,04/02/2019,01/02/2019,TRAVELODGE GB0000,THAME,,OX9 3AT,REDACTED,556*********6959,3615,TRAVELODGE,142,Pound Sterling (826),1.000000000,142,Debit,55504439032298182108503,02/03/2019,GLOUCESTER CC
Gloucester City Council,23UE,Housing Services,HS001,B&B Payments,1303,04/02/2019,01/02/2019,Amerisuites,GLOUCESTER,,GL2 4NF,REDACTED,556*********6959,3514,AMERISUITES,570,Pound Sterling (826),1.000000000,570,Debit,85481479033113315672631,02/03/2019,GLOUCESTER CC
Gloucester City Council,23UE,Housing Services,HS001,B&B Payments,1303,05/02/2019,04/02/2019,TRAVELODGE GB0000,THAME,,OX9 3AT,REDACTED,556*********6959,3615,TRAVELODGE,50,Pound Sterling (826),1.000000000,50,Debit,55504439035298197144870,02/03/2019,GLOUCESTER CC
Gloucester City Council,23UE,Housing Services,HS001,B&B Payments,1303,05/02/2019,04/02/2019,TRAVELODGE GB0000,THAME,,OX9 3AT,REDACTED,556*********6959,3615,TRAVELODGE,44,Pound Sterling (826),1.000000000,44,Debit,55504439035298197118395,02/03/2019,GLOUCESTER CC
Gloucester City Council,23UE,Housing Services,HS001,B&B Payments,1303,05/02/2019,04/02/2019,TRAVELODGE GB0000,THAME,,OX9 3AT,REDACTED,556*********6959,3615,TRAVELODGE,41,Pound Sterling (826),1.000000000,41,Debit,55504439035298197096674,02/03/2019,GLOUCESTER CC
Gloucester City Council,23UE,Housing Services,HS001,B&B Payments,1303,06/02/2019,05/02/2019,TRAVELODGE GB0000,THAME,,OX9 3AT,REDACTED,556*********6959,3615,TRAVELODGE,150,Pound Sterling (826),1.000000000,150,Debit,55504439036298103561190,02/03/2019,GLOUCESTER CC
Gloucester City Council,23UE,Housing Services,HS001,B&B Payments,1303,06/02/2019,05/02/2019,TRAVELODGE GB0000,THAME,,OX9 3AT,REDACTED,556*********6959,3615,TRAVELODGE,150,Pound Sterling (826),1.000000000,150,Debit,55504439036298103552082,02/03/2019,GLOUCESTER CC
Gloucester City Council,23UE,Housing Services,HS001,B&B Payments,1303,06/02/2019,05/02/2019,TRAVELODGE GB0000,THAME,,OX9 3AT,REDACTED,556*********6959,3615,TRAVELODGE,59,Pound Sterling (826),1.000000000,59,Debit,55504439036298103535491,02/03/2019,GLOUCESTER CC
Gloucester City Council,23UE,Housing Services,HS001,B&B Payments,1303,07/02/2019,06/02/2019,TRAVELODGE GB0000,THAME,,OX9 3AT,REDACTED,556*********6959,3615,TRAVELODGE,50,Pound Sterling (826),1.000000000,50,Debit,55504439037298109703803,02/03/2019,GLOUCESTER CC
Gloucester City Council,23UE,Housing Services,HS001,B&B Payments,1303,08/02/2019,07/02/2019,TRAVELODGE GB0000,THAME,,OX9 3AT,REDACTED,556*********6959,3615,TRAVELODGE,-196,Pound Sterling (826),1.000000000,-196,Credit,55504439038298115693252,02/03/2019,GLOUCESTER CC
Gloucester City Council,23UE,Housing Services,HS001,B&B Payments,1303,11/02/2019,08/02/2019,TRAVELODGE GB0000,THAME,,OX9 3AT,REDACTED,556*********6959,3615,TRAVELODGE,126,Pound Sterling (826),1.000000000,126,Debit,55504439039298123844417,02/03/2019,GLOUCESTER CC
Gloucester City Council,23UE,Housing Services,HS001,B&B Payments,1303,11/02/2019,08/02/2019,TRAVELODGE GB0000,THAME,,OX9 3AT,REDACTED,556*********6959,3615,TRAVELODGE,137,Pound Sterling (826),1.000000000,137,Debit,55504439039298123862658,02/03/2019,GLOUCESTER CC
Gloucester City Council,23UE,Housing Services,HS001,B&B Payments,1303,11/02/2019,08/02/2019,Amerisuites,GLOUCESTER,,GL2 4NF,REDACTED,556*********6959,3514,AMERISUITES,570,Pound Sterling (826),1.000000000,570,Debit,85481479040114937431126,02/03/2019,GLOUCESTER CC
Gloucester City Council,23UE,Housing Services,HS001,B&B Payments,1303,12/02/2019,11/02/2019,TRAVELODGE GB0000,THAME,,OX9 3AT,REDACTED,556*********6959,3615,TRAVELODGE,50,Pound Sterling (826),1.000000000,50,Debit,55504439042298138467662,02/03/2019,GLOUCESTER CC
Gloucester City Council,23UE,Housing Services,HS001,B&B Payments,1303,12/02/2019,11/02/2019,TRAVELODGE GB0000,THAME,,OX9 3AT,REDACTED,556*********6959,3615,TRAVELODGE,103,Pound Sterling (826),1.000000000,103,Debit,55504439042298138537597,02/03/2019,GLOUCESTER CC
Gloucester City Council,23UE,Housing Services,HS001,B&B Payments,1303,13/02/2019,12/02/2019,TRAVELODGE GB0000,THAME,,OX9 3AT,REDACTED,556*********6959,3615,TRAVELODGE,367,Pound Sterling (826),1.000000000,367,Debit,55504439043298144745555,02/03/2019,GLOUCESTER CC
Gloucester City Council,23UE,Housing Services,HS001,B&B Payments,1303,14/02/2019,13/02/2019,TRAVELODGE GB0000,THAME,,OX9 3AT,REDACTED,556*********6959,3615,TRAVELODGE,44,Pound Sterling (826),1.000000000,44,Debit,55504439044298151055814,02/03/2019,GLOUCESTER CC
Gloucester City Council,23UE,Housing Services,HS001,B&B Payments,1303,19/02/2019,18/02/2019,TRAVELODGE GB0000,THAME,,OX9 3AT,REDACTED,556*********6959,3615,TRAVELODGE,142,Pound Sterling (826),1.000000000,142,Debit,55504439049298180103143,02/03/2019,GLOUCESTER CC
Gloucester City Council,23UE,Housing Services,HS001,B&B Payments,1303,20/02/2019,19/02/2019,TRAVELODGE GB0000,THAME,,OX9 3AT,REDACTED,556*********6959,3615,TRAVELODGE,380,Pound Sterling (826),1.000000000,380,Debit,55504439050298186451757,02/03/2019,GLOUCESTER CC
Gloucester City Council,23UE,Housing Services,HS001,B&B Payments,1303,20/02/2019,19/02/2019,TRAVELODGE GB0000,THAME,,OX9 3AT,REDACTED,556*********6959,3615,TRAVELODGE,121,Pound Sterling (826),1.000000000,121,Debit,55504439050298186448753,02/03/2019,GLOUCESTER CC
Gloucester City Council,23UE,Housing Services,HS001,General Supplies/Materials,3025,20/02/2019,19/02/2019,SCREWFIX DIRECT,YEOVIL,,BA228RT,REDACTED,556*********6959,5211,LUMBER AND BUILDING MATERIALS STORES,116.98,Pound Sterling (826),1.000000000,116.98,Debit,85481479051117647091219,02/03/2019,GLOUCESTER CC
Gloucester City Council,23UE,Housing Services,HS001,B&B Payments,1303,20/02/2019,19/02/2019,TRAVELODGE GB0000,THAME,,OX9 3AT,REDACTED,556*********6959,3615,TRAVELODGE,-142,Pound Sterling (826),1.000000000,-142,Credit,55504439050298186448696,02/03/2019,GLOUCESTER CC
Gloucester City Council,23UE,Housing Services,HS001,B&B Payments,1303,21/02/2019,20/02/2019,TRAVELODGE GB0000,THAME,,OX9 3AT,REDACTED,556*********6959,3615,TRAVELODGE,94,Pound Sterling (826),1.000000000,94,Debit,55504439051298192800947,02/03/2019,GLOUCESTER CC
Gloucester City Council,23UE,Housing Services,HS001,B&B Payments,1303,21/02/2019,20/02/2019,TRAVELODGE GB0000,THAME,,OX9 3AT,REDACTED,556*********6959,3615,TRAVELODGE,50,Pound Sterling (826),1.000000000,50,Debit,55504439051298192801259,02/03/2019,GLOUCESTER CC
Gloucester City Council,23UE,Housing Services,HS001,B&B Payments,1303,21/02/2019,20/02/2019,TRAVELODGE GB0000,THAME,,OX9 3AT,REDACTED,556*********6959,3615,TRAVELODGE,-50,Pound Sterling (826),1.000000000,-50,Credit,55504439051298192809443,02/03/2019,GLOUCESTER CC
Gloucester City Council,23UE,Housing Services,HS001,B&B Payments,1303,26/02/2019,25/02/2019,TRAVELODGE GB0000,THAME,,OX9 3AT,REDACTED,556*********6959,3615,TRAVELODGE,116,Pound Sterling (826),1.000000000,116,Debit,55504439056298123704049,02/03/2019,GLOUCESTER CC
Gloucester City Council,23UE,Housing Services,HS001,B&B Payments,1303,28/02/2019,27/02/2019,TRAVELODGE GB0000,THAME,,OX9 3AT,REDACTED,556*********6959,3615,TRAVELODGE,71,Pound Sterling (826),1.000000000,71,Debit,55504439058298136756091,02/03/2019,GLOUCESTER CC
Gloucester City Council,23UE,Housing Services,HS001,B&B Payments,1303,28/02/2019,27/02/2019,TRAVELODGE GB0000,THAME,,OX9 3AT,REDACTED,556*********6959,3615,TRAVELODGE,404,Pound Sterling (826),1.000000000,404,Debit,55504439058298136728868,02/03/2019,GLOUCESTER CC
Gloucester City Council,23UE,Housing Services,HS001,B&B Payments,1303,01/03/2019,28/02/2019,TRAVELODGE GB0000,THAME,,OX9 3AT,REDACTED,556*********6959,3615,TRAVELODGE,54,Pound Sterling (826),1.000000000,54,Debit,55504439059298143760911,02/03/2019,GLOUCESTER CC
Gloucester City Council,23UE,Housing Services,HS001,B&B Payments,1303,01/03/2019,28/02/2019,TRAVELODGE GB0000,THAME,,OX9 3AT,REDACTED,556*********6959,3615,TRAVELODGE,54,Pound Sterling (826),1.000000000,54,Debit,55504439059298143767783,02/03/2019,GLOUCESTER CC
Gloucester City Council,23UE,ICT Projects,XCICT,Hardware,9005,04/02/2019,01/02/2019,WWW.CABLEMONKEY.CO.UK,INTERNET,GBR,CM77 7AA,REDACTED,556*********3063,5065,ELECTRICAL PARTS AND EQUIPMENT,207.36,Pound Sterling (826),1.000000000,207.36,Debit,05272479033910009033231,02/03/2019,GLOUCESTER CC
Gloucester City Council,23UE,Business Transformation,BI006,General Supplies/Materials,3025,04/02/2019,03/02/2019,AMZN Mktp UK*MI8P45N14,800-279-6620,LUX,L2338,REDACTED,556*********3063,5942,BOOK STORES,142.25,Pound Sterling (826),1.000000000,142.25,Debit,55204729034200375051107,02/03/2019,GLOUCESTER CC
Gloucester City Council,23UE,Civica Admin Charges,BI002,Professional Advice/Consultants Fees,3952,08/02/2019,07/02/2019,WWW.GOV.UK/HMCTS,03001231056,,NN1 2LH,REDACTED,556*********3063,9399,GOVERNMENT SERVICES NOT ELSEWHERE CLASSIFIED,105,Pound Sterling (826),1.000000000,105,Debit,85481479039114646769520,02/03/2019,GLOUCESTER CC
Gloucester City Council,23UE,Financial Services,FS004,Public Transport - Staff,2402,12/02/2019,11/02/2019,Trainline,London,GBR,1445,REDACTED,556*********3063,4112,PASSENGER RAILWAYS,172.5,Pound Sterling (826),1.000000000,172.5,Debit,85130089042905974719707,02/03/2019,GLOUCESTER CC
Gloucester City Council,23UE,Financial Services,FS004,Public Transport - Staff,2402,12/02/2019,11/02/2019,Trainline,London,GBR,1445,REDACTED,556*********3063,4112,PASSENGER RAILWAYS,99.5,Pound Sterling (826),1.000000000,99.5,Debit,85130089042905974797117,02/03/2019,GLOUCESTER CC
Gloucester City Council,23UE,Financial Services,FS004,Public Transport - Staff,2402,14/02/2019,13/02/2019,GWR WEBSALES,SWINDON,,SN1 1HL,REDACTED,556*********3063,4112,PASSENGER RAILWAYS,8.9,Pound Sterling (826),1.000000000,8.9,Debit,55504439044300237690034,02/03/2019,GLOUCESTER CC
Gloucester City Council,23UE,Civica Admin Charges,BI002,Professional Advice/Consultants Fees,3952,14/02/2019,13/02/2019,HMCOURTS-SERVICE.G,01452420100,,GL12ZG,REDACTED,556*********3063,9222,FINES,344,Pound Sterling (826),1.000000000,344,Debit,85481479045116111052722,02/03/2019,GLOUCESTER CC
Gloucester City Council,23UE,Business Transformation,BI006,General Supplies/Materials,3025,18/02/2019,17/02/2019,Amazon.co.uk*MI9Y77DZ4,AMAZON.CO.UK,LUX,L2338,REDACTED,556*********3063,5969,ALL OTHER DIRECT MARKETERS,15.93,Pound Sterling (826),1.000000000,15.93,Debit,55204729048100203502673,02/03/2019,GLOUCESTER CC
Gloucester City Council,23UE,Business Transformation,BI006,General Supplies/Materials,3025,21/02/2019,19/02/2019,AMZN MKTP UK*MI3A31KO4,AMAZON.CO.UK,LUX,,REDACTED,556*********3063,5942,BOOK STORES,47.76,Pound Sterling (826),1.000000000,47.76,Debit,85389249051907924038978,02/03/2019,GLOUCESTER CC
Gloucester City Council,23UE,Financial Services,FS004,Public Transport - Staff,2402,25/02/2019,22/02/2019,WWW.GWR.COM,07889651585,,SN1 1HL,REDACTED,556*********3063,4112,PASSENGER RAILWAYS,21.9,Pound Sterling (826),1.000000000,21.9,Debit,55504439053081107440043,02/03/2019,GLOUCESTER CC
